fUST/lending_fUST_20250121
["ID","MTS","AMOUNT","RATE_DAILY","PERIOD"]
[349795978,1737433844546,-500.0,0.00021917,2]
[349795980,1737433844555,-43749.82,0.00021917,3]
[349795982,1737433844565,-500.0,0.00021917,3]
[349795984,1737433844576,-500.0,0.00021917,3]
[349795986,1737433844586,-500.0,0.00021917,3]
[349795988,1737433844596,-500.0,0.00021917,3]
[349795990,1737433844605,-500.0,0.00021917,3]
[349795992,1737433844614,-500.0,0.00021917,3]
[349795994,1737433844624,-492.96476629,0.00021917,3]
[349795996,1737433844633,-5177.25,0.00021917,3]
[349795999,1737433844644,-500.0,0.00021917,3]
[349796001,1737433844653,-500.0,0.00021917,3]
[349796003,1737433844663,-500.0,0.00021917,3]
[349796005,1737433844672,-1976.34,0.00021917,3]
[349796007,1737433844681,-151.0,0.00021917,2]
[349796009,1737433844691,-151.0,0.00021917,2]
[349796011,1737433844700,-2151.99,0.00021917,3]
[349796013,1737433844710,-830.47,0.00021917,3]
[349796015,1737433844720,-151.0,0.00021917,2]
[349796017,1737433844729,-151.0,0.00021917,2]
[349796019,1737433844742,-500.0,0.00021917,3]
[349796021,1737433844751,-151.0,0.00021917,2]
[349796022,1737433844760,-500.0,0.00021917,3]
[349796024,1737433844771,-500.0,0.00021917,3]
[349796026,1737433844781,-500.0,0.00021917,3]
[349796029,1737433844791,-3520.18,0.00021917,3]
[349796031,1737433844800,-764.7,0.00021917,3]
[349796033,1737433844810,-500.0,0.00021917,3]
[349796034,1737433844819,-508.92127666,0.00021917,3]
[349796036,1737433844828,-1449.67,0.00021917,3]
[349796038,1737433844837,-500.0,0.00021917,3]
[349796040,1737433844847,-754.95,0.00021917,3]
[349796042,1737433844856,-1299.01,0.00021917,3]
[349796044,1737433844865,-501.55965703,0.00021917,3]
[349796046,1737433844874,-151.0,0.00021917,2]
[349796048,1737433844884,-151.0,0.00021917,2]
[349796050,1737433844893,-151.0,0.00021917,2]
[349796052,1737433844902,-553.32596473,0.00021917,3]
[349796054,1737433844911,-151.0,0.00021917,2]
[349796056,1737433844921,-500.0,0.00021917,3]
[349796059,1737433844930,-151.0,0.00021917,2]
[349796060,1737433844939,-500.0,0.00021917,3]
[349796062,1737433844949,-2241.77,0.00021917,3]
[349796064,1737433844958,-500.0,0.00021917,3]
[349796066,1737433844967,-500.0,0.00021917,3]
[349796068,1737433844977,-500.0,0.00021917,3]
[349796070,1737433844988,-500.0,0.00021917,3]
[349796072,1737433844997,-1799.49,0.00021917,3]
[349796074,1737433845006,-500.0,0.00021917,3]
[349796076,1737433845016,-500.0,0.00021917,3]
[349796079,1737433845026,-500.0,0.00021917,3]
[349796080,1737433845036,-503.58293383,0.00021917,3]
[349796082,1737433845045,-500.0,0.00021917,3]
[349796084,1737433845055,-500.0,0.00021917,3]
[349796086,1737433845064,-500.0,0.00021917,3]
[349796088,1737433845074,-500.0,0.00021917,3]
[349796090,1737433845088,-1000.0,0.00021917,3]
[349796092,1737433845097,-500.0,0.00021917,3]
[349796094,1737433845106,-151.0,0.00021917,2]
[349796096,1737433845116,-151.0,0.00021917,2]
[349796098,1737433845125,-500.0,0.00021917,3]
[349796100,1737433845134,-169.648891,0.00021917,2]
[349796102,1737433845144,-500.0,0.00021917,3]
[349796104,1737433845154,-500.73427901,0.00021917,3]
[349796106,1737433845163,-500.0,0.00021917,3]
[349796108,1737433845173,-4615.2,0.00021917,3]
[349796111,1737433845183,-500.0,0.00021917,3]
[349796112,1737433845192,-500.0,0.00021917,3]
[349796114,1737433845201,-501.63087348,0.00021917,3]
[349796116,1737433845211,-403.77019345,0.00021917,3]
[349796118,1737433845219,-1121.26,0.00021917,3]
[349796120,1737433845229,-151.0,0.00021917,2]
[349796122,1737433845238,-155.5154,0.00021917,2]
[349796124,1737433845248,-502.75302765,0.00021917,3]
[349796126,1737433845257,-500.0,0.00021917,3]
[349796128,1737433845266,-500.0,0.00021917,3]
[349796130,1737433845275,-500.0,0.00021917,3]
[349796132,1737433845284,-617.53858657,0.00021917,3]
[349796134,1737433845294,-500.0,0.00021917,3]
[349796136,1737433845304,-634.43583887,0.00021917,3]
[349796138,1737433845313,-1557.01516834,0.00021917,3]
[349798117,1737434028248,164.149962,0.00013973,2]
[349798120,1737434108690,236.18768612,0.00019817,2]
[349798121,1737434259410,33372.71,0.00024,120]
[349798124,1737434409742,157.45845741,0.00019817,2]
[349798125,1737434413219,4935.75077955,0.0002,2]
[349798127,1737434521303,3842.0,0.0002,3]
[349798128,1737434521605,3842.0,0.0002,3]
[349798129,1737434521953,3842.0,0.0002,3]
[349798130,1737434522266,3842.0,0.0002,3]
[349798131,1737434522574,3665.67079444,0.0002,3]
[349798288,1737435035738,-300.0,0.00019999,2]
[349798289,1737435035747,-176.32920556,0.0002,3]
[349798290,1737435035757,-324.26580444,0.0002,3]
[349798291,1737435035769,-947.05944699,0.0002,3]
[349798292,1737435035792,-2570.67474857,0.0002,3]
[349798293,1737435035802,-2717.0,0.0002,3]
[349798294,1737435035811,-2714.0,0.0002,3]
[349798295,1737435035820,-2158.75720938,0.0002,3]
[349798296,1737435035849,-555.24279062,0.0002,3]
[349798297,1737435035859,-2714.0,0.0002,3]
[349798298,1737435035868,-2714.0,0.0002,3]
[349798299,1737435035877,-2714.0,0.0002,3]
[349798300,1737435035888,-169.366272,0.00020249,2]
[349798301,1737435035897,-208.27639765,0.00020249,2]
[349798302,1737435035906,-283.101443,0.00020373,2]
[349798303,1737435035915,-648.5401293,0.00020373,2]
[349798304,1737435035925,-500.0,0.00020432,2]
[349798305,1737435035934,-155.04,0.00020432,2]
[349798306,1737435035943,-156.990004,0.00020736,4]
[349798307,1737435035952,-372.454,0.0002082,2]
[349798308,1737435035961,-161.88255831,0.00021555,5]
[349798309,1737435035971,-164.149962,0.00021661,2]
[349798310,1737435035980,-185.4685324,0.00021697,2]
[349798311,1737435035989,-420.0,0.00021777,2]
[349798312,1737435035999,-1019.55087728,0.00021829,2]
[349798313,1737435036008,-152.0,0.00021834,2]
[349798314,1737435036017,-151.0,0.00021916,2]
[349798315,1737435036027,-239.09153551,0.00021916,7]
[349798316,1737435036037,-190.42576225,0.00021917,3]
[349798317,1737435036046,-501.6637143,0.00021917,3]
[349798318,1737435036055,-667.58,0.00021917,3]
[349798319,1737435036065,-500.84,0.00021917,3]
[349798320,1737435036074,-511.51202658,0.00021917,3]
[349798321,1737435036083,-500.0,0.00021917,3]
[349798322,1737435036093,-500.0,0.00021917,3]
[349798323,1737435036103,-500.0,0.00021917,3]
[349798324,1737435036112,-464.31213955,0.00021917,3]
[349798325,1737435036122,-500.0,0.00021917,3]
[349798326,1737435036131,-500.0,0.00021917,3]
[349798327,1737435036140,-500.0,0.00021917,3]
[349798328,1737435036149,-500.0,0.00021917,3]
[349798329,1737435036158,-500.0,0.00021917,3]
[349798330,1737435036169,-648.97,0.00021917,3]
[349798331,1737435036178,-500.0,0.00021917,3]
[349798332,1737435036188,-500.0,0.00021917,3]
[349798333,1737435036198,-500.0,0.00021917,3]
[349798334,1737435036207,-541.0,0.00021917,3]
[349798335,1737435036217,-300.49615367,0.00021917,3]
[349798383,1737435038123,-199.50384633,0.00021917,3]
[349798385,1737435038133,-861.69,0.00021917,3]
[349798387,1737435038143,-500.0,0.00021917,3]
[349798389,1737435038153,-500.0,0.00021917,3]
[349798391,1737435038163,-799.86,0.00021917,3]
[349798393,1737435038174,-533.18,0.00021917,3]
[349798395,1737435038184,-500.0,0.00021917,3]
[349798397,1737435038193,-500.0,0.00021917,3]
[349798399,1737435038203,-500.0,0.00021917,3]
[349798401,1737435038213,-500.0,0.00021917,3]
[349798403,1737435038222,-500.0,0.00021917,3]
[349798405,1737435038232,-500.0,0.00021917,3]
[349798407,1737435038241,-500.0,0.00021917,3]
[349798409,1737435038250,-500.0,0.00021917,3]
[349798411,1737435038259,-500.0,0.00021917,3]
[349798413,1737435038269,-500.0,0.00021917,3]
[349798415,1737435038279,-500.0,0.00021917,3]
[349798417,1737435038288,-500.0,0.00021917,3]
[349798419,1737435038298,-1922.28,0.00021917,3]
[349798421,1737435038308,-416.76714011,0.00021917,3]
[349798423,1737435038317,-169.053,0.00021917,2]
[349798425,1737435038327,-500.0,0.00021917,3]
[349798427,1737435038336,-500.0,0.00021917,3]
[349798429,1737435038346,-850.24,0.00021917,3]
[349798432,1737435038356,-500.0,0.00021917,3]
[349798434,1737435038365,-406.68051123,0.00021917,3]
[349798436,1737435038375,-500.0,0.00021917,3]
[349798438,1737435038384,-595.08,0.00021917,3]
[349798440,1737435038393,-500.0,0.00021917,3]
[349798442,1737435038403,-507.54,0.00021917,3]
[349798444,1737435038412,-568.28,0.00021917,3]
[349798446,1737435038421,-518.39,0.00021917,3]
[349798448,1737435038436,-165.34010399,0.00021917,3]
[349798450,1737435038445,-500.0,0.00021917,3]
[349798452,1737435038454,-503.6420251,0.00021917,3]
[349798454,1737435038464,-500.0,0.00021917,3]
[349798456,1737435038474,-208.4903078,0.00021917,3]
[349798458,1737435038483,-500.0,0.00021917,3]
[349798460,1737435038492,-500.0,0.00021917,3]
[349798462,1737435038502,-500.0,0.00021917,3]
[349798464,1737435038512,-500.0,0.00021917,3]
[349798466,1737435038523,-500.0,0.00021917,3]
[349798468,1737435038532,-500.0,0.00021917,3]
[349798470,1737435038542,-500.0,0.00021917,3]
[349798472,1737435038552,-1161.85,0.00021917,3]
[349798474,1737435038562,-217.30215694,0.00021917,3]
[349798497,1737435038774,-500.0,0.00021917,3]
[349798499,1737435038784,-500.0,0.00021917,3]
[349798501,1737435038794,-735.38,0.00021917,3]
[349798503,1737435038804,-1373.53,0.00021917,3]
[349798505,1737435038814,-500.0,0.00021917,3]
[349798507,1737435038823,-270.02414145,0.00021917,3]
[349798509,1737435038833,-813.97,0.00021917,3]
[349798511,1737435038842,-500.0,0.00021917,3]
[349798513,1737435038852,-500.0,0.00021917,3]
[349798515,1737435038861,-500.0,0.00021917,3]
[349798517,1737435038872,-727.55,0.00021917,3]
[349798519,1737435038882,-1996.75,0.00021917,3]
[349798521,1737435038891,-500.0,0.00021917,3]
[349798523,1737435038901,-490.06641135,0.00021917,3]
[349798525,1737435038911,-509.73284338,0.00021917,3]
[349798527,1737435038921,-527.85,0.00021917,3]
[349798529,1737435038930,-1029.57,0.00021917,3]
[349798531,1737435038940,-732.83,0.00021917,3]
[349798533,1737435038950,-286.677869,0.00021917,3]
[349798947,1737435042996,-326.652131,0.00021917,3]
[349798949,1737435043007,-500.0,0.00021917,3]
[349798951,1737435043017,-500.0,0.00021917,3]
[349798953,1737435043026,-500.0,0.00021917,3]
[349798955,1737435043036,-1431.87,0.00021917,3]
[349798957,1737435043046,-500.0,0.00021917,3]
[349798959,1737435043055,-677.72,0.00021917,3]
[349798961,1737435043065,-500.0,0.00021917,3]
[349798963,1737435043075,-500.0,0.00021917,3]
[349798965,1737435043085,-500.0,0.00021917,3]
[349798967,1737435043095,-500.0,0.00021917,3]
[349798969,1737435043105,-500.0,0.00021917,3]
[349798971,1737435043114,-645.53,0.00021917,3]
[349798973,1737435043124,-501.16132116,0.00021917,3]
[349798975,1737435043134,-500.0,0.00021917,3]
[349798977,1737435043144,-500.0,0.00021917,3]
[349798979,1737435043154,-440.48887587,0.00021917,3]
[349798981,1737435043163,-653.12,0.00021917,3]
[349798983,1737435043173,-500.0,0.00021917,3]
[349798985,1737435043183,-500.57238905,0.00021917,3]
[349798986,1737435043194,-500.0,0.00021917,3]
[349798988,1737435043204,-1244.89,0.00021917,3]
[349798991,1737435043215,-500.0,0.00021917,3]
[349798992,1737435043225,-496.89027449,0.00021917,3]
[349798994,1737435043235,-500.0,0.00021917,3]
[349798996,1737435043246,-616.09,0.00021917,3]
[349798998,1737435043256,-500.0,0.00021917,3]
[349799000,1737435043266,-500.0,0.00021917,3]
[349799002,1737435043277,-500.0,0.00021917,3]
[349799004,1737435043287,-500.0,0.00021917,3]
[349799006,1737435043297,-500.0,0.00021917,3]
[349799008,1737435043307,-500.0,0.00021917,3]
[349799010,1737435043316,-512.76,0.00021917,3]
[349799012,1737435043327,-500.0,0.00021917,3]
[349799014,1737435043337,-1106.4,0.00021917,3]
[349799016,1737435043347,-504.70852396,0.00021917,3]
[349799018,1737435043357,-868.33,0.00021917,3]
[349799020,1737435043367,-500.0,0.00021917,3]
[349799022,1737435043376,-500.0,0.00021917,3]
[349799024,1737435043387,-500.0,0.00021917,3]
[349799026,1737435043397,-490.63151978,0.00021917,3]
[349799028,1737435043406,-513.78033632,0.00021917,3]
[349799030,1737435043416,-197.08290386,0.00021917,3]
[349799032,1737435043425,-535.07933594,0.00021917,3]
[349799034,1737435043438,-500.0,0.00021917,3]
[349799036,1737435043450,-500.0,0.00021917,3]
[349799038,1737435043460,-500.0,0.00021917,3]
[349799040,1737435043469,-646.54517958,0.00021917,3]
[349799042,1737435043480,-376.42416754,0.00021917,3]
[349799044,1737435043489,-500.0,0.00021917,3]
[349799046,1737435043499,-500.0,0.00021917,3]
[349799048,1737435043509,-502.4615765,0.00021917,3]
[349799050,1737435043519,-500.0,0.00021917,3]
[349799053,1737435043529,-500.0,0.00021917,3]
[349799056,1737435043539,-684.63,0.00021917,3]
[349799059,1737435043549,-500.0,0.00021917,3]
[349799062,1737435043558,-376.37865571,0.00021917,3]
[349799064,1737435043568,-500.0,0.00021917,3]
[349799066,1737435043577,-500.0,0.00021917,3]
[349799069,1737435043586,-500.0,0.00021917,3]
[349799071,1737435043596,-610.05,0.00021917,3]
[349799074,1737435043607,-500.97786736,0.00021917,3]
[349799077,1737435043616,-505.59226146,0.00021917,3]
[349799081,1737435043627,-977.18,0.00021917,3]
[349799083,1737435043636,-500.0,0.00021917,3]
[349799085,1737435043646,-500.0,0.00021917,3]
[349799087,1737435043657,-831.77,0.00021917,3]
[349799090,1737435043667,-500.0,0.00021917,3]
[349799092,1737435043677,-500.0,0.00021917,3]
[349799094,1737435043687,-500.0,0.00021917,3]
[349799096,1737435043696,-500.0,0.00021917,3]
[349799098,1737435043705,-500.0,0.00021917,3]
[349799100,1737435043715,-500.0,0.00021917,3]
[349799102,1737435043725,-565.11,0.00021917,3]
[349799104,1737435043734,-500.0,0.00021917,3]
[349799106,1737435043743,-500.0,0.00021917,3]
[349799108,1737435043753,-500.0,0.00021917,3]
[349799110,1737435043762,-500.0,0.00021917,3]
[349799112,1737435043772,-500.0,0.00021917,3]
[349799114,1737435043783,-339.0,0.00021917,3]
[349799116,1737435043792,-500.0,0.00021917,3]
[349799118,1737435043802,-188.0,0.00021917,2]
[349799120,1737435043811,-500.0,0.00021917,3]
[349799122,1737435043821,-500.0,0.00021917,3]
[349799124,1737435043830,-500.0,0.00021917,3]
[349799126,1737435043839,-532.12267842,0.00021917,2]
[349799128,1737435043854,-1184.15732158,0.00021917,2]
[349799130,1737435043863,-500.0,0.00021917,3]
[349799132,1737435043873,-500.0,0.00021917,3]
[349799134,1737435043882,-500.0,0.00021917,3]
[349799136,1737435043892,-502.44,0.00021917,3]
[349799138,1737435043901,-502.44,0.00021917,3]
[349799140,1737435043911,-502.44,0.00021917,3]
[349799143,1737435043921,-502.44,0.00021917,3]
[349799144,1737435043930,-502.44,0.00021917,3]
[349799147,1737435043939,-502.44,0.00021917,3]
[349799149,1737435043949,-502.44,0.00021917,3]
[349799151,1737435043959,-502.44,0.00021917,3]
[349799152,1737435043968,-502.44,0.00021917,3]
[349799155,1737435043977,-502.44,0.00021917,3]
[349799157,1737435043987,-502.44,0.00021917,3]
[349799159,1737435043996,-502.44,0.00021917,3]
[349799161,1737435044005,-502.44,0.00021917,3]
[349799162,1737435044015,-502.44,0.00021917,3]
[349799164,1737435044026,-502.44,0.00021917,3]
[349799166,1737435044035,-502.44,0.00021917,3]
[349799168,1737435044045,-502.44,0.00021917,3]
[349799170,1737435044055,-484.55982912,0.00021917,3]
[349799370,1737435046006,-15.44017088,0.00021917,3]
[349799372,1737435046016,-502.44,0.00021917,3]
[349799374,1737435046025,-502.44,0.00021917,3]
[349799376,1737435046036,-502.44,0.00021917,3]
[349799378,1737435046045,-502.44,0.00021917,3]
[349799380,1737435046055,-502.44,0.00021917,3]
[349799382,1737435046064,-502.44,0.00021917,3]
[349799384,1737435046073,-502.58141781,0.00021917,3]
[349799387,1737435046083,-500.0,0.00021917,3]
[349799389,1737435046093,-563.85,0.00021917,3]
[349799391,1737435046102,-500.0,0.00021917,3]
[349799393,1737435046112,-1058.03,0.00021917,3]
[349799395,1737435046122,-500.0,0.00021917,3]
[349799397,1737435046131,-500.0,0.00021917,3]
[349799399,1737435046140,-500.0,0.00021917,3]
[349799401,1737435046150,-151.0,0.00021917,2]
[349799403,1737435046159,-151.0,0.00021917,2]
[349799405,1737435046169,-151.0,0.00021917,2]
[349799407,1737435046179,-151.0,0.00021917,2]
[349799409,1737435046188,-225.16541054,0.00021917,3]
[349799411,1737435046197,-500.0,0.00021917,3]
[349799413,1737435046207,-151.0,0.00021917,2]
[349799415,1737435046217,-2845.37412465,0.00021917,3]
[349799417,1737435046229,-1679.3,0.00021917,3]
[349800983,1737435182988,163.3943,0.00013973,2]
[349800985,1737435452248,1679.3,0.00024322,120]
[349800986,1737435691679,200.0,0.00016,2]
[349801003,1737436236382,-266.5495878,0.00017639,2]
[349801004,1737436236393,-266.5495878,0.00017817,2]
[349801005,1737436236403,-5000.0,0.00019,4]
[349801006,1737436236413,-274.078232,0.00019282,2]
[349801007,1737436236423,-1269.2934216,0.00019412,2]
[349801008,1737436236433,-13974.5311668,0.00019574,2]
[349801009,1737436236444,-509.50136825,0.00019574,2]
[349801035,1737436237821,-2049.01022075,0.00019574,2]
[349801036,1737436237831,-283.101443,0.0001963,2]
[349801038,1737436237841,-266.5495878,0.00019899,2]
[349801040,1737436237851,-2569.0,0.0002,2]
[349801041,1737436237860,-500.0,0.00020432,2]
[349801043,1737436237870,-3000.0,0.00020432,8]
[349801046,1737436237880,-500.0,0.00020518,2]
[349801049,1737436237891,-372.88,0.0002082,2]
[349801051,1737436237900,-570.28908995,0.00020858,2]
[349801054,1737436237909,-169.933,0.00020958,2]
[349801057,1737436237919,-12945.24961731,0.0002113,2]
[349801059,1737436237928,-5000.0,0.00021275,7]
[349801062,1737436237937,-156.990004,0.00021303,3]
[349801065,1737436237947,-165.85078,0.00021303,3]
[349801067,1737436237956,-570.28908993,0.0002134,2]
[349801070,1737436237966,-2289.299,0.00021407,2]
[349801073,1737436237975,-395.0,0.00021407,2]
[349801075,1737436237985,-2569.0,0.000216,4]
[349801078,1737436237995,-12945.24961731,0.00021619,2]
[349801081,1737436238005,-163.3943,0.00021661,2]
[349801084,1737436238014,-12945.24961731,0.00021725,2]
[349801086,1737436238024,-225.6,0.00021738,5]
[349801089,1737436238033,-570.28908993,0.00021822,2]
[349801091,1737436238044,-6305.08160022,0.00021899,5]
[349801093,1737436238053,-64636.72498923,0.000219,5]
[349801095,1737436238063,-80183.3681261,0.000219,2]
[349801097,1737436238073,-1421.55,0.000219,2]
[349801099,1737436238083,-3000.0,0.000219,2]
[349801101,1737436238093,-188.0,0.000219,2]
[349801103,1737436238103,-349.0,0.000219,9]
[349801105,1737436238112,-151.0,0.000219,2]
[349801107,1737436238122,-258.45469,0.000219,2]
[349801109,1737436238132,-220.36160955,0.000219,3]
[349801111,1737436238141,-151.0,0.000219,2]
[349801113,1737436238151,-500.0,0.00021916,2]
[349801115,1737436238160,-500.0,0.00021916,2]
[349801117,1737436238169,-500.0,0.00021916,2]
[349801119,1737436238179,-500.0,0.00021916,2]
[349801121,1737436238188,-500.63298453,0.00021916,2]
[349801123,1737436238198,-500.0,0.00021916,2]
[349801125,1737436238207,-158.92264423,0.00021916,2]
[349801127,1737436238216,-500.0,0.00021916,2]
[349801129,1737436238226,-500.0,0.00021916,2]
[349801131,1737436238235,-500.0,0.00021916,2]
[349801133,1737436238244,-500.0,0.00021916,2]
[349801135,1737436238254,-500.0,0.00021916,2]
[349801137,1737436238264,-500.0,0.00021916,2]
[349801139,1737436238273,-500.0,0.00021916,2]
[349801141,1737436238283,-500.0,0.00021916,2]
[349801143,1737436238294,-500.0,0.00021916,2]
[349801145,1737436238303,-500.0,0.00021916,2]
[349801147,1737436238312,-480.74750282,0.00021916,2]
[349801149,1737436238322,-500.0,0.00021916,2]
[349801151,1737436238331,-500.0,0.00021916,2]
[349801153,1737436238341,-563.06271358,0.00021916,2]
[349801155,1737436238350,-500.0,0.00021916,2]
[349801157,1737436238361,-277.97068112,0.00021916,2]
[349801159,1737436238370,-500.0,0.00021916,2]
[349801162,1737436238379,-500.0,0.00021916,2]
[349801165,1737436238389,-410.04855133,0.00021916,2]
[349801167,1737436238399,-500.0,0.00021916,2]
[349801169,1737436238408,-500.0,0.00021916,2]
[349801171,1737436238418,-500.0,0.00021916,2]
[349801173,1737436238428,-500.0,0.00021916,2]
[349801175,1737436238437,-500.0,0.00021916,2]
[349801177,1737436238447,-500.0,0.00021916,2]
[349801179,1737436238457,-500.0,0.00021916,2]
[349801181,1737436238466,-500.0,0.00021916,2]
[349801183,1737436238476,-500.0,0.00021916,2]
[349801185,1737436238486,-500.0,0.00021916,2]
[349801187,1737436238496,-500.0,0.00021916,2]
[349801189,1737436238505,-500.0,0.00021916,2]
[349801192,1737436238516,-500.0,0.00021916,2]
[349801216,1737436238525,-500.0,0.00021916,2]
[349801218,1737436238749,-500.0,0.00021916,2]
[349801220,1737436238759,-500.0,0.00021916,2]
[349801222,1737436238769,-500.0,0.00021916,2]
[349801224,1737436238779,-500.0,0.00021916,2]
[349801226,1737436238789,-500.0,0.00021916,2]
[349801228,1737436238799,-500.0,0.00021916,2]
[349801230,1737436238808,-500.0,0.00021916,2]
[349801232,1737436238817,-500.0,0.00021916,2]
[349801234,1737436238828,-500.0,0.00021916,2]
[349801236,1737436238838,-500.0,0.00021916,2]
[349801238,1737436238847,-500.0,0.00021916,2]
[349801240,1737436238857,-500.0,0.00021916,2]
[349801242,1737436238866,-500.0,0.00021916,2]
[349801244,1737436238876,-500.0,0.00021916,2]
[349801246,1737436238885,-500.0,0.00021916,2]
[349801248,1737436238895,-500.0,0.00021916,2]
[349801250,1737436238904,-500.0,0.00021916,2]
[349801252,1737436238914,-500.0,0.00021916,2]
[349801254,1737436238923,-181.99233482,0.00021916,2]
[349801256,1737436238933,-500.0,0.00021916,2]
[349801258,1737436238942,-500.0,0.00021916,2]
[349801260,1737436238952,-500.0,0.00021916,2]
[349801262,1737436238961,-500.0,0.00021916,2]
[349801264,1737436238970,-500.0,0.00021916,2]
[349801266,1737436238980,-500.0,0.00021916,2]
[349801268,1737436238990,-500.0,0.00021916,2]
[349801270,1737436238999,-500.0,0.00021916,2]
[349801272,1737436239009,-500.0,0.00021916,2]
[349801274,1737436239018,-500.0,0.00021916,2]
[349801276,1737436239028,-500.0,0.00021916,2]
[349801278,1737436239037,-500.0,0.00021916,2]
[349801280,1737436239049,-500.0,0.00021916,2]
[349801283,1737436239059,-500.0,0.00021916,2]
[349801285,1737436239068,-500.0,0.00021916,2]
[349801287,1737436239077,-500.0,0.00021916,2]
[349801289,1737436239086,-500.0,0.00021916,2]
[349801291,1737436239097,-500.0,0.00021916,2]
[349801293,1737436239106,-500.0,0.00021916,2]
[349801295,1737436239115,-287.96338017,0.00021916,2]
[349801297,1737436239125,-250.0,0.00021916,2]
[349801299,1737436239134,-500.0,0.00021916,2]
[349801301,1737436239143,-500.0,0.00021916,2]
[349801303,1737436239153,-151.0,0.00021916,2]
[349801305,1737436239162,-151.0,0.00021916,2]
[349801307,1737436239172,-201.1562492,0.00021916,2]
[349801309,1737436239182,-500.0,0.00021916,2]
[349801311,1737436239191,-336.91938807,0.00021916,2]
[349801313,1737436239202,-151.0,0.00021916,2]
[349801315,1737436239211,-151.0,0.00021916,2]
[349801317,1737436239220,-156.990608,0.00021916,2]
[349801319,1737436239230,-160.51722033,0.00021916,2]
[349801321,1737436239239,-439.81606342,0.00021917,3]
[349801323,1737436239248,-501.62600902,0.00021917,3]
[349801325,1737436239257,-500.0,0.00021917,3]
[349801327,1737436239266,-500.45486258,0.00021917,3]
[349801329,1737436239275,-503.90628389,0.00021917,3]
[349801331,1737436239285,-619.78291035,0.00021917,3]
[349801333,1737436239295,-505.04612488,0.00021917,3]
[349801335,1737436239304,-501.73970647,0.00021917,3]
[349801337,1737436239313,-227.99413324,0.00021917,3]
[349801339,1737436239323,-500.0,0.00021917,3]
[349801341,1737436239332,-500.80372381,0.00021917,3]
[349801343,1737436239341,-502.21726588,0.00021917,3]
[349801345,1737436239350,-500.0,0.00021917,3]
[349801347,1737436239360,-500.0,0.00021917,3]
[349801349,1737436239370,-500.0,0.00021917,3]
[349801351,1737436239379,-500.0,0.00021917,3]
[349801353,1737436239389,-500.0,0.00021917,3]
[349801355,1737436239399,-500.0,0.00021917,3]
[349801357,1737436239409,-500.0,0.00021917,3]
[349801359,1737436239419,-500.0,0.00021917,3]
[349801361,1737436239429,-501.97023757,0.00021917,3]
[349801363,1737436239439,-500.0,0.00021917,3]
[349801365,1737436239449,-501.63592278,0.00021917,3]
[349801366,1737436239459,-500.0,0.00021917,3]
[349801367,1737436239468,-500.0,0.00021917,3]
[349801368,1737436239478,-500.0,0.00021917,3]
[349801369,1737436239487,-500.0,0.00021917,3]
[349801370,1737436239497,-500.0,0.00021917,3]
[349801371,1737436239507,-500.0,0.00021917,3]